Cogmind - Beta 13 @@@ ROGUE MODE // 2024.04.20 @ 08:01:44 Player: Zaros426 Result: Destroyed by D-53 Grenadier with Mini Grenade Launcher Performance ------------- Evolutions (0) 0 Regions Visited (2) 400 Robots Destroyed (17) 85 Value Destroyed (264) 264 Prototype IDs (3) 60 Alien Tech Used (0) 0 Bonus (0) 0 TOTAL SCORE: 809 Bonus ------- None Cogmind --------- Core Integrity 0/250 Matter 300/300 Energy 100/100 System Corruption 0% Temperature Cool (0) Movement Walking (120) Location -10/Mines Parts ------- > --- POWER (1) -------- (None) > --- PROPULSION (2) --- Flexi-carbon Leg > --- UTILITY (2) ------ Large Storage Unit > --- WEAPON (2) ------- (None) > --- INVENTORY (15) --- Light Ion Engine Aluminum Leg Aluminum Leg Carbon-fiber Leg Cryofiber Web Large Storage Unit Improved Terrain Scanner Terrain Scan Processor Seismic Detector Heavy Armor Plating Beamcaster Assault Rifle Assault Rifle Grenade Launcher Peak State ------------ > --- POWER ------------ Fission Core > --- PROPULSION ------- Carbon-fiber Leg Flexi-carbon Leg > --- UTILITY ---------- Large Storage Unit > --- WEAPON ----------- High-powered Shotgun > --- INVENTORY -------- Light Ion Engine Aluminum Leg Aluminum Leg Carbon-fiber Leg Cryofiber Web Large Storage Unit Improved Terrain Scanner Terrain Scan Processor Seismic Detector Heavy Armor Plating Beamcaster Assault Rifle Assault Rifle Grenade Launcher [Rating: 20] Favorites ----------- Power Light Nuclear Core Engine Light Ion Engine Power Core Light Nuclear Core Propulsion Light Treads Treads Light Treads Leg Carbon-fiber Leg Utility Large Storage Unit Device Seismic Detector Storage Large Storage Unit Processor Signal Interpreter Protection Light Armor Plating Weapon Assault Rifle Energy Gun Small Laser Ballistic Gun Assault Rifle Special Melee Weapon Improved Datajack Build | -11 -10 -10 ------- Run | Yrd Mat Min Slots Evolved . | . . . Power . | . . . Propulsion . | . . . Utility . | . . . Weapon . | . . . Parts Attached 20 | 7 4 9 Power 3 | 1 . 2 Engine 1 | 1 . . Core 2 | . . 2 Reactor . | . . . Propulsion 6 | 2 . 4 Treads 2 | 2 . . Leg 4 | . . 4 Wheel . | . . . Hover . | . . . Flight . | . . . Utility 5 | 2 2 1 Device 1 | 1 . . Storage 2 | 1 1 . Processor 1 | . 1 . Hackware . | . . . Protection 1 | . . 1 Artifact . | . . . Weapon 6 | 2 2 2 Energy Gun 2 | 2 . . Energy Cannon . | . . . Ballistic Gun 3 | . 2 1 Ballistic Cannon . | . . . Launcher . | . . . Special Weapon . | . . . Impact Weapon . | . . . Slashing Weapon . | . . . Piercing Weapon . | . . . Special Melee Weapon 1 | . . 1 Unidentified Prototypes . | . . . Parts Lost 7 | . . 7 Power 2 | . . 2 Propulsion 3 | . . 3 Utility 1 | . . 1 Weapon 1 | . . 1 Highest Loss Streak 4 | . . 4 To Critical Strikes . | . . . Average Slot Usage (%) 93 | . 100 90 Engine 4 | . 14 . Core 8 | . . 12 Treads 23 | . 28 21 Leg 3 | . . 5 Device 3 | . 13 . Storage 14 | . 14 14 Protection 7 | . . 10 Energy Gun 5 | . 20 . Ballistic Gun 19 | . 7 23 Naked Turns . | . . . Heaviest Build 33 | 11 28 33 Greatest Support 40 | 40 40 40 Greatest Overweight (x) 1 | . . 1 Average Overweight (x) . | . . . Largest Inventory Capacity 15 | 8 15 15 Average Capacity 13 | 7 11 15 Most Carried 15 | 1 7 15 Average Carried 7 | . 3 10 Final Capacity 15 | 8 15 15 Final Carried 15 | 1 7 15 Class Distribution -------------------- 100% | Mutant Dominant Class ---------------- Mutant | -10/Materials Mutant | -10/Mines Resources | -11 -10 -10 ----------- Run | Yrd Mat Min Matter Collected 632 | 260 105 267 Remotely . | . . . Salvage Created 446 | 69 142 235 Parts 40 | 9 20 11 Haulers Intercepted . | . . . Recyclers Shooed 1 | . . 1 Parts Field Recycled . | . . . Retrieved Matter . | . . . Parts Self-Destructed . | . . . Prevented . | . . . Kills | -11 -10 -10 ------- Run | Yrd Mat Min Combat Hostiles Destroyed 18 | . 4 14 Guns 18 | . 4 14 Classes Destroyed 5 | 1 3 1 Tunneler 3 | 3 . . Watcher 3 | . 3 . Swarmer 8 | . 3 5 Grunt 3 | . 1 2 Assembled 7 | . . 7 Best Kill Streak 7 | 2 3 7 Combat Bots Only 7 | . 3 7 Max Kills in Single Turn 2 | 1 1 2 Gunslinging 1 | . . 1 Exploded . | . . . Melee . | . . . Uniques/NPCs Destroyed . | . . . Combat | -11 -10 -10 -------- Run | Yrd Mat Min Hostile Shots Fired 95 | . 18 77 Missed 14 | . 5 9 Damage Taken 1346 | . 113 1233 Core 260 | . 13 247 Absorbed by Shields . | . . . Core Remaining (%) 100 | 100 . . Volleys Fired 70 | 6 26 38 Largest 2 | 2 2 2 Hottest 80 | 80 80 40 Shots Fired 119 | 12 52 55 Gun 119 | 12 52 55 Cannon . | . . . Launcher . | . . . Special . | . . . Kinetic 77 | . 22 55 Thermal 42 | 12 30 . Explosive . | . . . Electromagnetic . | . . . Robot Hit Streak 7 | 7 5 7 Robot Miss Streak 5 | 1 5 3 Penetration Max . | . . . Secondary Targets 4 | . 1 3 Max Gunslinging Chain 1 | . 1 1 Shots Hit Robots 73 | 9 23 41 Core Hits 40 | 4 10 26 Critical Kills . | . . . Critical Parts Destroyed . | . . . Critical Strikes . | . . . Melee Attacks 2 | . . 2 Impact . | . . . Slashing . | . . . Piercing . | . . . Sneak Attacks . | . . . Combat Hostiles . | . . . Follow-up Attacks . | . . . Damage Inflicted 979 | 83 282 614 Guns 979 | 83 282 614 Cannons . | . . . Explosions . | . . . Melee . | . . . Ramming . | . . . Kinetic 741 | . 127 614 Thermal 238 | 83 155 . Explosive . | . . . Electromagnetic . | . . . Impact . | . . . Slashing . | . . . Piercing . | . . . Highest Corruption . | . . . Average Corruption . | . . . Corruption Purged . | . . . Corruption Blocked . | . . . Overload Shots . | . . . Overflow Damage . | . . . Projectiles . | . . . Explosions . | . . . Melee . | . . . Knockbacks . | . . . Impact . | . . . Kinetic . | . . . Secondary . | . . . Self-Inflicted Damage . | . . . Shots . | . . . Rammed . | . . . Targets Rammed . | . . . Kicked . | . . . Crushed . | . . . Highest Temperature 108 | 36 108 64 Average Temperature 32 | 18 38 32 Received Heat Transfer 210 | . 24 186 Siege Activations . | . . . Robots Corrupted . | . . . Combat Hostiles . | . . . Parts Fried . | . . . Impact Corruptions . | . . . Robots Melted . | . . . Combat Hostiles . | . . . Parts Melted . | . . . Heat Transferred 550 | 200 350 . Parts Sabotaged . | . . . Parts Stolen . | . . . Parts Stripped . | . . . Power Chain Reactions . | . . . Alert | -11 -10 -10 ------- Run | Yrd Mat Min Peak Influence 269 | 15 177 269 Initial 69 | . 9 69 Average 102 | 5 98 124 Maximum Alert Level 1 | . . 1 Low Security (%) 81 | 100 100 70 Level 1 18 | . . 29 Level 2 . | . . . Level 3 . | . . . Level 4 . | . . . Level 5 . | . . . High Security . | . . . Max Security . | . . . Squads Dispatched 2 | . 1 1 Investigation 1 | . . 1 Extermination . | . . . Reinforcement 1 | . 1 . Assault . | . . . Garrison . | . . . Intercept . | . . . Searches Triggered . | . . . Construction Impeded . | . . . Haulers Reinforced . | . . . Active Scanning Responses . | . . . Cargo Convoy Interrupts . | . . . Stealth | -11 -10 -10 --------- Run | Yrd Mat Min Distress Signals 1 | . 1 . Communications Jammed . | . . . Distress Signals . | . . . Times Spotted 42 | . 13 29 Peak Tracking Total 14 | . 6 14 Tactical Retreats 4 | . . 4 Traps | -11 -10 -10 ------- Run | Yrd Mat Min Traps Triggered . | . . . Indirectly . | . . . Trap Hack Attempts . | . . . Triggered . | . . . Disarmed . | . . . Reprogrammed . | . . . Reused . | . . . Traps Extracted . | . . . Installed . | . . . Triggered . | . . . Machines | -11 -10 -10 ---------- Run | Yrd Mat Min Machines Disabled . | . . . Max in Single Turn . | . . . Machines Repaired . | . . . Machines Dismantled . | . . . Machines Sabotaged . | . . . Overloaded Fab Kills . | . . . Hacking | -11 -10 -10 --------- Run | Yrd Mat Min Machines Accessed 3 | . 2 1 Terminals 2 | . 2 . Fabricators . | . . . Repair Stations . | . . . Recycling Units . | . . . Scanalyzers . | . . . Garrison Access . | . . . Total Hacks 5 | . 4 1 Successful 4 | . 3 1 Failed 1 | . 1 . Catastrophic . | . . . Database Lockouts . | . . . Manual . | . . . Terminals 4 | . 4 . Fabricators . | . . . Repair Stations . | . . . Recycling Units . | . . . Scanalyzers . | . . . Garrison Access . | . . . Terminal Hacks 4 | . 3 1 Prototype ID Bank 2 | . 2 . Open Door 1 | . . 1 Zone Layout 1 | . 1 . Fabricator Hacks . | . . . Repair Station Hacks . | . . . Recycling Unit Hacks . | . . . Scanalyzer . | . . . Garrison Access Hacks . | . . . Unauthorized Hacks . | . . . Terminals . | . . . Fabricators . | . . . Repair Stations . | . . . Recycling Units . | . . . Scanalyzers . | . . . Garrison Access . | . . . Data Cores Recovered . | . . . Used . | . . . Hacking Detections 2 | . 2 . Full Trace Events . | . . . Feedback Events . | . . . Feedback Blocked . | . . . Robot Schematics Acquired . | . . . Robots Built . | . . . Authchips . | . . . Time . | . . . Total Robot Build Rating . | . . . Part Schematics Acquired . | . . . Parts Built . | . . . Authchips . | . . . Time . | . . . Total Part Build Rating . | . . . Parts Repaired . | . . . Time . | . . . Parts Recycled . | . . . Recycled Matter . | . . . Retrieved Matter . | . . . Retrieved Components . | . . . Parts Scanalyzed . | . . . Part Schematics Acquired . | . . . Parts Damaged . | . . . Bothacking | -11 -10 -10 ------------ Run | Yrd Mat Min Used RIF Installer . | . . . Robots Hacked 1 | . . 1 Non-combat . | . . . Combat 1 | . . 1 Robot Hacks Applied 1 | . . 1 parse_system 1 | . . 1 Relay Couplers Released . | . . . Fabnet Peak Effective % . | . . . Robots Rewired . | . . . Allies Hacked . | . . . Hacks Repelled . | . . . Allies | -11 -10 -10 -------- Run | Yrd Mat Min Total Allies 1 | . . 1 Largest Group 1 | . . 1 Highest-Rated Group 31 | . . 31 Highest-Rated Ally 31 | . . 31 Total Orders . | . . . Ally Attacks 4 | . . 4 Total Damage 62 | . . 62 Kills 1 | . . 1 Allies Corrupted . | . . . Allies Melted . | . . . Intel | -11 -10 -10 ------- Run | Yrd Mat Min Robot Analysis Total . | . . . Derelict Logs Recovered 1 | . . 1 Drone Launches . | . . . Drone Recoveries . | . . . Exploration | -11 -10 -10 ------------- Run | Yrd Mat Min Turns Passed 1261 | 163 325 773 Spaces Moved 617 | 79 136 402 Core 1 | 1 . . Treads 526 | 78 136 312 Legs 90 | . . 90 Wheels . | . . . Hover . | . . . Flight . | . . . Fastest Speed 50 | 50 160 120 Average Speed 159 | 158 160 159 Slowest Speed 240 | 160 160 240 Overloaded Moves . | . . . Propulsion Burnouts . | . . . Robots Hopped . | . . . Cave-ins Triggered . | . . . Exploration Rate (%) 36 | 5 22 81 Regions Visited 2 Branch Regions 1 Pre-discovered Areas . | . . . Known Exits Taken 1 | . 1 . Unknown Exits Taken 1 | 1 . . Scrap Searched 1 | . . 1 Spaces Dug . | . . . Terrain Destroyed . | . . . Melee . | . . . Projectile . | . . . AOE . | . . . Terrain Rammed . | . . . Walls Destroyed . | . . . Machines Disabled . | . . . Actions | -11 -10 -10 --------- Run | Yrd Mat Min Total 771 | 101 192 478 Wait 33 | 9 14 10 Move 615 | 78 135 402 Hop . | . . . Pick Up 22 | 1 9 12 Fast Attach 8 | 7 . 1 Attach 2 | . . 2 Detach . | . . . Swap 10 | . 4 6 Drop 9 | . 4 5 Fire 70 | 6 26 38 Melee 2 | . . 2 Ram . | . . . Kick . | . . . Crush . | . . . Escape Stasis . | . . . Rewire . | . . . Trap . | . . . Miscellaneous . | . . . Route ------- -11/Scrapyard -10/Materials -10/Mines (discovered 2 exits: [*Mat x2]) History --------- Turn | Location | Event 27 | -11/Scrapyard | Discovered new exit (range 15) 164 | -11/Scrapyard | Entered Materials 307 | -10/Materials | Discovered new exit (range 15) 317 | -10/Materials | Build established: Mutant 488 | -10/Materials | Identified exit to Mines 489 | -10/Materials | Entered Mines 498 | -10/Mines | Met a Derelict bent on vengeance 624 | -10/Mines | Learned location of 1 exit from Materials 694 | -10/Mines | Discovered new exit (range 11) 774 | -10/Mines | Discovered new exit (range 4) 833 | -10/Mines | Received a Mining Laser from a helpful Derelict 980 | -10/Mines | Met a Derelict shopkeep closing up shop 1029 | -10/Mines | Assembled infested the area 1034 | -10/Mines | Assisted by a Guerilla fighting off Assembled 1099 | -10/Mines | Core integrity fell below 50% 1120 | -10/Mines | Lost 4 parts (1p2n1u) 1124 | -10/Mines | Destroyed 7 combat bots 1242 | -10/Mines | Core integrity fell below 20% 1262 | -10/Mines | Destroyed by D-53 Grenadier with Mini Grenade Launcher Last Messages --------------- 01116_ Acquired Beamcaster. 01118_ Acquired 51 matter. 01121_ Acquired 49 matter. 01123_ Dropped Aluminum Leg. 01123_ Acquired Flexi-carbon Leg. 01125_ Dropped Assault Rifle. 01125_ Dropped Imp. Datajack. 01126_ Dropped Assault Rifle. 01129_ Acquired Aluminum Leg. 01131_ Acquired Fission Core. 01134_ Acquired 10 matter. 01210_ Acquired Terrain Scan Processor. 01226_ Hpw. Shotgun destroyed. 01235_ The unstable cave ceiling collapses. 01240_ U-05 Engineer builds a Wall. 01242_ The unstable cave ceiling collapses. 01256_ Fission Core destroyed. 01258_ as-90857 destroyed. 01261_ as-41178 destroyed. 01261_ Carbon-fiber Leg destroyed. Map ----- +----------------------------------------------------+ | | | | | | | | | | | | | | | | | | | | | | | | | | | ???????????????????????#######?????????????? | | ?????????????######???# # ##########????? | | ?????????????# #??# # ##???? | | ?????????????# ### ##??? | | ?????????????# d #??? | | ??????????????# d #??? | | ?????????????## !% ##??? | | ????????????## # ##???? | | ???????????## ### #???? | | ?????#?????# #??# #???? | | ????? ?????# % #?## ##???? | | ????? ?????# !!* #??# #????? | | ????# #????# ## % @ #??# #????? | | ????# #????## ???## ## ####### #????? | | ????# #???????????# ?# #??# # #????? | | ????# #???????????# ??# #??# ### #????? | | ????# #??????????? ???# #### #### #???? | | ????# #?????????? ????# ## #???? | | ????# #??????? ## #???# # #???? | | ##### ##### #???#!## ###???? | | #??#%## #?????? | | #??#=* #?????? | | #### ##### #??## # ##?????? | | #??# #??????? ##???## ######??????? | | #??#!#???????????#?????#### ###???????????? | | ##??#%#????????????????????# #?????????????? | | ##### #????????????????????# #??####???????? | | #????????????????????# #?## #####???? | | ### #????????????????????# ### ##??? | | ### ##???????????????????# % ##?? | | ### #???????????????????# %% #?? | | ## #?????####??????????###%###### #?? | | #?????# ##??????#####%["#???## #?? | | ## ##????# #??????# [/!% ##???## " #?? | | ?# ##????# ########%######????# #?? | | ?# #????# #?????????# #?? | | ### #???## #########?????????## ##?? | +----------------------------------------------------+ Best States ------------- Heat Dissipation 25 Energy Generation 18 Energy Capacity 310 Matter Stores 300 Matter Capacity 300 Sight Range 16 Terrain Scan Density 10 Armor Coverage 150 Evasion (%) 55 Recoil Reduction 2 Item Schematics ----------------- None Robot Schematics ------------------ None Fabricated ------------ Nothing Alien Tech Used ----------------- None Achievements -------------- None Challenges ------------ None Game ------ Seed LightningOpticalCasing Manual? 0 Play Time 00:12:31 Cumulative 60.7 hours Start 2024.04.20 @ 07:52:09 End 2024.04.20 @ 08:01:44 Sessions 1 Manual Loads 0 Difficulty Rogue Special Mode None Game No. 62 Rogue 62 Adventurer 0 Explorer 0 Win Type - Total 0 Types 0/0/0/0/0/0/0/0/0 Lore% 30 Gallery% 47 Achievement% 32 Wizard Run 0 Options --------- Layout 0 ASCII 0 Keyboard 0 Movement Mouse Keybinds 0 Fullscreen 2 Font 24/Smallcaps Map View 183x50 Zoom Use 0% Tactical HUD 1 Map Filters NONE Filters NONE Steam 0 RUN: 0e9568e3-b68a-4542-baa8-523d7a5f4c62